{"text_format":"3","workbook":"xlsx","n_sheets":1,"sheets":["Osobný mesačný rozpočet"],"read":"whole","date_system":"1900"}

{"sheet":"Osobný mesačný rozpočet","index":0,"n_rows":62,"n_cols":10,"rows_kept":62,"merged":[[0,1,0,9],[2,1,4,1],[2,2,2,3],[2,7,2,8],[3,2,3,3],[3,7,3,8],[4,2,4,3],[4,6,4,8],[5,1,7,1],[5,2,5,3],[5,7,5,8],[6,2,6,3],[6,7,6,8],[7,2,7,3],[7,6,7,8],[20,6,20,9],[21,1,21,4],[29,6,29,9],[31,1,31,4],[36,6,36,9],[38,1,38,4],[42,6,42,9],[44,1,44,4],[48,6,48,9],[52,1,52,4],[55,6,55,9]]}
[null,"Osobný mesačný rozpočet"]
[]
[null,"PREDPOKLADANÝ MESAČNÝ PRÍJEM","Príjem 1",null,{"v":2500,"d":"2,500 €"},null,"PREDPOKLADANÉ CELKOVÉ VÝDAVKY ","(predpokladaný príjem mínus náklady)",null,{"$f":"SUM(C21,C31,C38,C44,C52,C62,H20,H29,H36,H42,H48,H55)","v":{"v":2060,"d":"2,060 €"}}]
[null,null,"Osobitné príjmy",null,{"v":500,"d":"500 €"},null,"CELKOVÉ SKUTOČNÉ VÝDAVKY ","(skutočný príjem mínus náklady)",null,{"$f":"SUM(D21,D31,D38,D44,D52,D62,I20,I29,I36,I42,I48,I55)","v":{"v":2040,"d":"2,040 €"}}]
[null,null,"Mesačný príjem spolu",null,{"$f":"SUM(E3:E4)","v":{"v":3000,"d":"3,000 €"}},null,"Celkový rozdiel vo výdavkoch",null,null,{"$f":"SUM(E21,E31,E38,E44,E52,E62,J20,J29,J36,J42,J48,J55)","v":{"v":20,"d":"20 €"}}]
[null,"SKUTOČNÝ MESAČNÝ PRÍJEM","Príjem 1",null,{"v":2500,"d":"2,500 €"},null,"PREDPOKLADANÝ ZOSTATOK","(predpokladaný príjem mínus náklady)",null,{"$f":"E5-J3","v":{"v":940,"d":"940 €"}}]
[null,null,"Osobitné príjmy",null,{"v":500,"d":"500 €"},null,"SKUTOČNÝ ZOSTATOK","(skutočný príjem mínus náklady)",null,{"$f":"E8-J4","v":{"v":960,"d":"960 €"}}]
[null,null,"Mesačný príjem spolu",null,{"$f":"SUM(E6:E7)","v":{"v":3000,"d":"3,000 €"}},null,"Rozdiel v zostatku (skutočný mínus predpokladaný)",null,null,{"$f":"J7-J6","v":{"v":20,"d":"20 €"}}]
[]
[null,"BÝVANIE","Predpokladané náklady","Skutočné náklady","Rozdiel",null,"ZÁBAVA","Predpokladané náklady","Skutočné náklady","Rozdiel"]
[null,"Hypotéka alebo nájomné",{"v":1500,"d":"1,500 €"},{"v":1400,"d":"1,400 €"},{"$f":"Bývanie[[#This Row],[Predpokladané náklady]]-Bývanie[[#This Row],[Skutočné náklady]]","v":{"v":100,"d":"100 €"}},null,"Video alebo DVD",{"v":0,"d":"0 €"},{"v":50,"d":"50 €"},{"$f":"Zábava[[#This Row],[Predpokladané náklady]]-Zábava[[#This Row],[Skutočné náklady]]","v":{"v":-50,"d":"-50 €"}}]
[null,"Telefón",{"v":60,"d":"60 €"},{"v":100,"d":"100 €"},{"$f":"Bývanie[[#This Row],[Predpokladané náklady]]-Bývanie[[#This Row],[Skutočné náklady]]","v":{"v":-40,"d":"-40 €"}},null,"CD nosiče",null,null,{"$f":"Zábava[[#This Row],[Predpokladané náklady]]-Zábava[[#This Row],[Skutočné náklady]]","v":{"v":0,"d":"0 €"}}]
[null,"Elektrina",{"v":50,"d":"50 €"},{"v":60,"d":"60 €"},{"$f":"Bývanie[[#This Row],[Predpokladané náklady]]-Bývanie[[#This Row],[Skutočné náklady]]","v":{"v":-10,"d":"-10 €"}},null,"Filmy",null,null,{"$f":"Zábava[[#This Row],[Predpokladané náklady]]-Zábava[[#This Row],[Skutočné náklady]]","v":{"v":0,"d":"0 €"}}]
[null,"Plyn",{"v":200,"d":"200 €"},{"v":180,"d":"180 €"},{"$f":"Bývanie[[#This Row],[Predpokladané náklady]]-Bývanie[[#This Row],[Skutočné náklady]]","v":{"v":20,"d":"20 €"}},null,"Koncerty",null,null,{"$f":"Zábava[[#This Row],[Predpokladané náklady]]-Zábava[[#This Row],[Skutočné náklady]]","v":{"v":0,"d":"0 €"}}]
[null,"Vodné a stočné",null,null,{"$f":"Bývanie[[#This Row],[Predpokladané náklady]]-Bývanie[[#This Row],[Skutočné náklady]]","v":{"v":0,"d":"0 €"}},null,"Športové podujatia",null,null,{"$f":"Zábava[[#This Row],[Predpokladané náklady]]-Zábava[[#This Row],[Skutočné náklady]]","v":{"v":0,"d":"0 €"}}]
[null,"Káblová televízia",null,null,{"$f":"Bývanie[[#This Row],[Predpokladané náklady]]-Bývanie[[#This Row],[Skutočné náklady]]","v":{"v":0,"d":"0 €"}},null,"Divadlo",null,null,{"$f":"Zábava[[#This Row],[Predpokladané náklady]]-Zábava[[#This Row],[Skutočné náklady]]","v":{"v":0,"d":"0 €"}}]
[null,"Odvoz odpadu",null,null,{"$f":"Bývanie[[#This Row],[Predpokladané náklady]]-Bývanie[[#This Row],[Skutočné náklady]]","v":{"v":0,"d":"0 €"}},null,"Iné",null,null,{"$f":"Zábava[[#This Row],[Predpokladané náklady]]-Zábava[[#This Row],[Skutočné náklady]]","v":{"v":0,"d":"0 €"}}]
[null,"Údržba alebo opravy",null,null,{"$f":"Bývanie[[#This Row],[Predpokladané náklady]]-Bývanie[[#This Row],[Skutočné náklady]]","v":{"v":0,"d":"0 €"}},null,"Iné",null,null,{"$f":"Zábava[[#This Row],[Predpokladané náklady]]-Zábava[[#This Row],[Skutočné náklady]]","v":{"v":0,"d":"0 €"}}]
[null,"Zásoby",null,null,{"$f":"Bývanie[[#This Row],[Predpokladané náklady]]-Bývanie[[#This Row],[Skutočné náklady]]","v":{"v":0,"d":"0 €"}},null,"Iné",null,null,{"$f":"Zábava[[#This Row],[Predpokladané náklady]]-Zábava[[#This Row],[Skutočné náklady]]","v":{"v":0,"d":"0 €"}}]
[null,"Iné",null,null,{"$f":"Bývanie[[#This Row],[Predpokladané náklady]]-Bývanie[[#This Row],[Skutočné náklady]]","v":{"v":0,"d":"0 €"}},null,"Celková hodnota",{"$f":"SUBTOTAL(109,Zábava[Predpokladané náklady])","v":{"v":0,"d":"0 €"}},{"$f":"SUBTOTAL(109,Zábava[Skutočné náklady])","v":{"v":50,"d":"50 €"}},{"$f":"SUBTOTAL(109,Zábava[Rozdiel])","v":{"v":-50,"d":"-50 €"}}]
[null,"Celková hodnota",{"$f":"SUBTOTAL(109,Bývanie[Predpokladané náklady])","v":{"v":1810,"d":"1,810 €"}},{"$f":"SUBTOTAL(109,Bývanie[Skutočné náklady])","v":{"v":1740,"d":"1,740 €"}},{"$f":"SUBTOTAL(109,Bývanie[Rozdiel])","v":{"v":70,"d":"70 €"}}]
[{"$nulls":6},"PÔŽIČKY","Predpokladané náklady","Skutočné náklady","Rozdiel"]
[null,"DOPRAVA","Predpokladané náklady","Skutočné náklady","Rozdiel",null,"Osobné",null,null,{"$f":"Pôžičky[[#This Row],[Predpokladané náklady]]-Pôžičky[[#This Row],[Skutočné náklady]]","v":{"v":0,"d":"0 €"}}]
[null,"Platba za vozidlo",{"v":250,"d":"250 €"},{"v":250,"d":"250 €"},{"$f":"Doprava[[#This Row],[Predpokladané náklady]]-Doprava[[#This Row],[Skutočné náklady]]","v":{"v":0,"d":"0 €"}},null,"Študentské",null,null,{"$f":"Pôžičky[[#This Row],[Predpokladané náklady]]-Pôžičky[[#This Row],[Skutočné náklady]]","v":{"v":0,"d":"0 €"}}]
[null,"Cestovné za autobus alebo taxi",null,null,{"$f":"Doprava[[#This Row],[Predpokladané náklady]]-Doprava[[#This Row],[Skutočné náklady]]","v":{"v":0,"d":"0 €"}},null,"Kreditná karta",null,null,{"$f":"Pôžičky[[#This Row],[Predpokladané náklady]]-Pôžičky[[#This Row],[Skutočné náklady]]","v":{"v":0,"d":"0 €"}}]
[null,"Poistenie",null,null,{"$f":"Doprava[[#This Row],[Predpokladané náklady]]-Doprava[[#This Row],[Skutočné náklady]]","v":{"v":0,"d":"0 €"}},null,"Kreditná karta",null,null,{"$f":"Pôžičky[[#This Row],[Predpokladané náklady]]-Pôžičky[[#This Row],[Skutočné náklady]]","v":{"v":0,"d":"0 €"}}]
[null,"Úradné poplatky",null,null,{"$f":"Doprava[[#This Row],[Predpokladané náklady]]-Doprava[[#This Row],[Skutočné náklady]]","v":{"v":0,"d":"0 €"}},null,"Kreditná karta",null,null,{"$f":"Pôžičky[[#This Row],[Predpokladané náklady]]-Pôžičky[[#This Row],[Skutočné náklady]]","v":{"v":0,"d":"0 €"}}]
[null,"Pohonné hmoty",null,null,{"$f":"Doprava[[#This Row],[Predpokladané náklady]]-Doprava[[#This Row],[Skutočné náklady]]","v":{"v":0,"d":"0 €"}},null,"Iné",null,null,{"$f":"Pôžičky[[#This Row],[Predpokladané náklady]]-Pôžičky[[#This Row],[Skutočné náklady]]","v":{"v":0,"d":"0 €"}}]
[null,"Údržba",null,null,{"$f":"Doprava[[#This Row],[Predpokladané náklady]]-Doprava[[#This Row],[Skutočné náklady]]","v":{"v":0,"d":"0 €"}},null,"Celková hodnota",{"$f":"SUBTOTAL(109,Pôžičky[Predpokladané náklady])","v":{"v":0,"d":"0 €"}},{"$f":"SUBTOTAL(109,Pôžičky[Skutočné náklady])","v":{"v":0,"d":"0 €"}},{"$f":"SUBTOTAL(109,Pôžičky[Rozdiel])","v":{"v":0,"d":"0 €"}}]
[null,"Iné",null,null,{"$f":"Doprava[[#This Row],[Predpokladané náklady]]-Doprava[[#This Row],[Skutočné náklady]]","v":{"v":0,"d":"0 €"}}]
[null,"Celková hodnota",{"$f":"SUBTOTAL(109,Doprava[Predpokladané náklady])","v":{"v":250,"d":"250 €"}},{"$f":"SUBTOTAL(109,Doprava[Skutočné náklady])","v":{"v":250,"d":"250 €"}},{"$f":"SUBTOTAL(109,Doprava[Rozdiel])","v":{"v":0,"d":"0 €"}},null,"DANE","Predpokladané náklady","Skutočné náklady","Rozdiel"]
[{"$nulls":6},"Zahraničné",null,null,{"$f":"Dane[[#This Row],[Predpokladané náklady]]-Dane[[#This Row],[Skutočné náklady]]","v":{"v":0,"d":"0 €"}}]
[null,"POISTENIE","Predpokladané náklady","Skutočné náklady","Rozdiel",null,"Štátne",null,null,{"$f":"Dane[[#This Row],[Predpokladané náklady]]-Dane[[#This Row],[Skutočné náklady]]","v":{"v":0,"d":"0 €"}}]
[null,"Domácnosť",null,null,{"$f":"Poistenie[[#This Row],[Predpokladané náklady]]-Poistenie[[#This Row],[Skutočné náklady]]","v":{"v":0,"d":"0 €"}},null,"Miestne",null,null,{"$f":"Dane[[#This Row],[Predpokladané náklady]]-Dane[[#This Row],[Skutočné náklady]]","v":{"v":0,"d":"0 €"}}]
[null,"Zdravotné",null,null,{"$f":"Poistenie[[#This Row],[Predpokladané náklady]]-Poistenie[[#This Row],[Skutočné náklady]]","v":{"v":0,"d":"0 €"}},null,"Iné",null,null,{"$f":"Dane[[#This Row],[Predpokladané náklady]]-Dane[[#This Row],[Skutočné náklady]]","v":{"v":0,"d":"0 €"}}]
[null,"Život",null,null,{"$f":"Poistenie[[#This Row],[Predpokladané náklady]]-Poistenie[[#This Row],[Skutočné náklady]]","v":{"v":0,"d":"0 €"}},null,"Celková hodnota",{"$f":"SUBTOTAL(109,Dane[Predpokladané náklady])","v":{"v":0,"d":"0 €"}},{"$f":"SUBTOTAL(109,Dane[Skutočné náklady])","v":{"v":0,"d":"0 €"}},{"$f":"SUBTOTAL(109,Dane[Rozdiel])","v":{"v":0,"d":"0 €"}}]
[null,"Iné",null,null,{"$f":"Poistenie[[#This Row],[Predpokladané náklady]]-Poistenie[[#This Row],[Skutočné náklady]]","v":{"v":0,"d":"0 €"}}]
[null,"Celková hodnota",{"$f":"SUBTOTAL(109,Poistenie[Predpokladané náklady])","v":{"v":0,"d":"0 €"}},{"$f":"SUBTOTAL(109,Poistenie[Skutočné náklady])","v":{"v":0,"d":"0 €"}},{"$f":"SUBTOTAL(109,Poistenie[Rozdiel])","v":{"v":0,"d":"0 €"}},null,"ÚSPORY ALEBO INVESTÍCIE","Predpokladané náklady","Skutočné náklady","Rozdiel"]
[{"$nulls":6},"Dôchodkový účet",null,null,{"$f":"ÚsporyAleboInvestície[[#This Row],[Predpokladané náklady]]-ÚsporyAleboInvestície[[#This Row],[Skutočné náklady]]","v":{"v":0,"d":"0 €"}}]
[null,"STRAVA","Predpokladané náklady","Skutočné náklady","Rozdiel",null,"Investičný účet",null,null,{"$f":"ÚsporyAleboInvestície[[#This Row],[Predpokladané náklady]]-ÚsporyAleboInvestície[[#This Row],[Skutočné náklady]]","v":{"v":0,"d":"0 €"}}]
[null,"Potraviny",null,null,{"$f":"Strava[[#This Row],[Predpokladané náklady]]-Strava[[#This Row],[Skutočné náklady]]","v":{"v":0,"d":"0 €"}},null,"Iné",null,null,{"$f":"ÚsporyAleboInvestície[[#This Row],[Predpokladané náklady]]-ÚsporyAleboInvestície[[#This Row],[Skutočné náklady]]","v":{"v":0,"d":"0 €"}}]
[null,"Reštaurácie",null,null,{"$f":"Strava[[#This Row],[Predpokladané náklady]]-Strava[[#This Row],[Skutočné náklady]]","v":{"v":0,"d":"0 €"}},null,"Celková hodnota",{"$f":"SUBTOTAL(109,ÚsporyAleboInvestície[Predpokladané náklady])","v":{"v":0,"d":"0 €"}},{"$f":"SUBTOTAL(109,ÚsporyAleboInvestície[Skutočné náklady])","v":{"v":0,"d":"0 €"}},{"$f":"SUBTOTAL(109,ÚsporyAleboInvestície[Rozdiel])","v":{"v":0,"d":"0 €"}}]
[null,"Iné",null,null,{"$f":"Strava[[#This Row],[Predpokladané náklady]]-Strava[[#This Row],[Skutočné náklady]]","v":{"v":0,"d":"0 €"}}]
[null,"Celková hodnota",{"$f":"SUBTOTAL(109,Strava[Predpokladané náklady])","v":{"v":0,"d":"0 €"}},{"$f":"SUBTOTAL(109,Strava[Skutočné náklady])","v":{"v":0,"d":"0 €"}},{"$f":"SUBTOTAL(109,Strava[Rozdiel])","v":{"v":0,"d":"0 €"}},null,"DARY A PRÍSPEVKY","Predpokladané náklady","Skutočné náklady","Rozdiel"]
[{"$nulls":6},"Charita 1",null,null,{"$f":"DaryAPríspevky[[#This Row],[Predpokladané náklady]]-DaryAPríspevky[[#This Row],[Skutočné náklady]]","v":{"v":0,"d":"0 €"}}]
[null,"DOMÁCE ZVIERATÁ","Predpokladané náklady","Skutočné náklady","Rozdiel",null,"Charita 2",null,null,{"$f":"DaryAPríspevky[[#This Row],[Predpokladané náklady]]-DaryAPríspevky[[#This Row],[Skutočné náklady]]","v":{"v":0,"d":"0 €"}}]
[null,"Strava",null,null,{"$f":"DomáceZvieratá[[#This Row],[Predpokladané náklady]]-DomáceZvieratá[[#This Row],[Skutočné náklady]]","v":{"v":0,"d":"0 €"}},null,"Charita 3",null,null,{"$f":"DaryAPríspevky[[#This Row],[Predpokladané náklady]]-DaryAPríspevky[[#This Row],[Skutočné náklady]]","v":{"v":0,"d":"0 €"}}]
[null,"Zdravie",null,null,{"$f":"DomáceZvieratá[[#This Row],[Predpokladané náklady]]-DomáceZvieratá[[#This Row],[Skutočné náklady]]","v":{"v":0,"d":"0 €"}},null,"Celková hodnota",{"$f":"SUBTOTAL(109,DaryAPríspevky[Predpokladané náklady])","v":{"v":0,"d":"0 €"}},{"$f":"SUBTOTAL(109,DaryAPríspevky[Skutočné náklady])","v":{"v":0,"d":"0 €"}},{"$f":"SUBTOTAL(109,DaryAPríspevky[Rozdiel])","v":{"v":0,"d":"0 €"}}]
[null,"Starostlivosť o výzor",null,null,{"$f":"DomáceZvieratá[[#This Row],[Predpokladané náklady]]-DomáceZvieratá[[#This Row],[Skutočné náklady]]","v":{"v":0,"d":"0 €"}}]
[null,"Hračky",null,null,{"$f":"DomáceZvieratá[[#This Row],[Predpokladané náklady]]-DomáceZvieratá[[#This Row],[Skutočné náklady]]","v":{"v":0,"d":"0 €"}},null,"PRÁVNE POPLATKY","Predpokladané náklady","Skutočné náklady","Rozdiel"]
[null,"Iné",null,null,{"$f":"DomáceZvieratá[[#This Row],[Predpokladané náklady]]-DomáceZvieratá[[#This Row],[Skutočné náklady]]","v":{"v":0,"d":"0 €"}},null,"Právnik",null,null,{"$f":"PrávnePoplatky[[#This Row],[Predpokladané náklady]]-PrávnePoplatky[[#This Row],[Skutočné náklady]]","v":{"v":0,"d":"0 €"}}]
[null,"Celková hodnota",{"$f":"SUBTOTAL(109,DomáceZvieratá[Predpokladané náklady])","v":{"v":0,"d":"0 €"}},{"$f":"SUBTOTAL(109,DomáceZvieratá[Skutočné náklady])","v":{"v":0,"d":"0 €"}},{"$f":"SUBTOTAL(109,DomáceZvieratá[Rozdiel])","v":{"v":0,"d":"0 €"}},null,"Výživné",null,null,{"$f":"PrávnePoplatky[[#This Row],[Predpokladané náklady]]-PrávnePoplatky[[#This Row],[Skutočné náklady]]","v":{"v":0,"d":"0 €"}}]
[{"$nulls":6},"Záložné právo alebo rozsudok",null,null,{"$f":"PrávnePoplatky[[#This Row],[Predpokladané náklady]]-PrávnePoplatky[[#This Row],[Skutočné náklady]]","v":{"v":0,"d":"0 €"}}]
[null,"OSOBNÁ STAROSTLIVOSŤ","Predpokladané náklady","Skutočné náklady","Rozdiel",null,"Iné",null,null,{"$f":"PrávnePoplatky[[#This Row],[Predpokladané náklady]]-PrávnePoplatky[[#This Row],[Skutočné náklady]]","v":{"v":0,"d":"0 €"}}]
[null,"Zdravie",null,null,{"$f":"OsobnáStarostlivosť[[#This Row],[Predpokladané náklady]]-OsobnáStarostlivosť[[#This Row],[Skutočné náklady]]","v":{"v":0,"d":"0 €"}},null,"Celková hodnota",{"$f":"SUBTOTAL(109,PrávnePoplatky[Predpokladané náklady])","v":{"v":0,"d":"0 €"}},{"$f":"SUBTOTAL(109,PrávnePoplatky[Skutočné náklady])","v":{"v":0,"d":"0 €"}},{"$f":"SUBTOTAL(109,PrávnePoplatky[Rozdiel])","v":{"v":0,"d":"0 €"}}]
[null,"Kaderníctvo a manikúra",null,null,{"$f":"OsobnáStarostlivosť[[#This Row],[Predpokladané náklady]]-OsobnáStarostlivosť[[#This Row],[Skutočné náklady]]","v":{"v":0,"d":"0 €"}}]
[null,"Oblečenie",null,null,{"$f":"OsobnáStarostlivosť[[#This Row],[Predpokladané náklady]]-OsobnáStarostlivosť[[#This Row],[Skutočné náklady]]","v":{"v":0,"d":"0 €"}}]
[null,"Čistiareň",null,null,{"$f":"OsobnáStarostlivosť[[#This Row],[Predpokladané náklady]]-OsobnáStarostlivosť[[#This Row],[Skutočné náklady]]","v":{"v":0,"d":"0 €"}}]
[null,"Zdravotný klub",null,null,{"$f":"OsobnáStarostlivosť[[#This Row],[Predpokladané náklady]]-OsobnáStarostlivosť[[#This Row],[Skutočné náklady]]","v":{"v":0,"d":"0 €"}}]
[null,"Príspevky alebo poplatky organizáciám",null,null,{"$f":"OsobnáStarostlivosť[[#This Row],[Predpokladané náklady]]-OsobnáStarostlivosť[[#This Row],[Skutočné náklady]]","v":{"v":0,"d":"0 €"}}]
[null,"Iné",null,null,{"$f":"OsobnáStarostlivosť[[#This Row],[Predpokladané náklady]]-OsobnáStarostlivosť[[#This Row],[Skutočné náklady]]","v":{"v":0,"d":"0 €"}}]
[null,"Celková hodnota",{"$f":"SUBTOTAL(109,OsobnáStarostlivosť[Predpokladané náklady])","v":{"v":0,"d":"0 €"}},{"$f":"SUBTOTAL(109,OsobnáStarostlivosť[Skutočné náklady])","v":{"v":0,"d":"0 €"}},{"$f":"SUBTOTAL(109,OsobnáStarostlivosť[Rozdiel])","v":{"v":0,"d":"0 €"}}]